[Event "WYCC 2018 O14"]
[Site "Halkidiki"]
[Date "2018.10.26"]
[Round "7"]
[White "Vettese, Nicholas"]
[Black "Boyer, Mahel"]
[Result "0-1"]
[ECO "C13"]
[WhiteElo "2338"]
[BlackElo "2227"]
[Annotator "NA"]
[PlyCount "126"]
[EventDate "2018.10.20"]
[EventType "swiss"]
[EventCountry "GRE"]
[SourceTitle "playchess.com"]
[Source "ChessBase"]
[SourceQuality "1"]
[TimeControl "40/5400+30:1800+30"]

1. e4 {[%emt 0:00:00]} e6 {[%emt 0:00:00]} 2. d4 {[%emt 0:00:00]} d5 {[%emt 0:00:00]} 3. Nc3 {[%emt 0:00:00]} Nf6 {[%emt 0:00:00]} 4. Bg5 {[%emt 0:00:05]} Be7 {[%emt 0:00:00]} 5. e5 {[%emt 0:00:11]} Nfd7 {[%emt 0:00:00]} 6. h4 {[%emt 0:00:10]} h6 {[%emt 0:00:00]} 7. Bxe7 {[%emt 0:00:26]} Qxe7 {[%emt 0:00:00]} 8. Qd2 {[%emt 0:01:33]} a6 {[%emt 0:03:35]} 9. f4 {[%emt 0:00:21]} c5 {[%emt 0:00:03]} 10. Nf3 {[%emt 0:00:11]} Nc6 {[%emt 0:00:12]} 11. O-O-O {[%emt 0:00:25]} b5 $11 {[%emt 0:04:16]} 12. dxc5 {[%emt 0:05:28]} Nxc5 {[%emt 0:00:20]} 13. Bd3 {[%emt 0:07:04]} Bb7 {[%emt 0:01:23]} 14. f5 {[%emt 0:10:47]} b4 {[%emt 0:15:40]} 15. Ne2 {[%emt 0:00:43]} Ne4 {[%emt 0:15:15]} 16. Bxe4 {[%emt 0:04:04]} dxe4 {[%emt 0:00:01]} 17. f6 {[%emt 0:01:27]} gxf6 {[%emt 0:13:55]} 18. exf6 {[%emt 0:00:10]} Qc7 {[%emt 0:02:37]} 19. Nfd4 {[%emt 0:01:42]} O-O-O {[%emt 0:02:43]} 20. Qe3 {[%emt 0:08:59]} Ne5 {[%emt 0:03:20]} 21. Rhf1 {[%emt 0:06:02]} Kb8 {[%emt 0:20:21]} 22. Nb3 {[%emt 0:19:01]} Ng4 {[%emt 0:02:45]} 23. Rxd8+ {[%emt 0:10:11]} Rxd8 {[%emt 0:00:09]} 24. Qh3 {[%emt 0:01:02]} h5 {[%emt 0:01:52]} 25. Qg3 {[%emt 0:03:45]} Qxg3 {[%emt 0:01:00]} 26. Nxg3 {[%emt 0:00:06]} Ne3 {[%emt 0:02:17]} 27. Re1 {[%emt 0:04:58]} Nxg2 {[%emt 0:00:44]} 28. Rd1 {[%emt 0:00:42]} Rg8 {[%emt 0:04:03]} 29. Nxh5 {[%emt 0:05:05]} e3 {[%emt 0:00:26]} 30. Nd4 {[%emt 0:00:27]} e5 {[%emt 0:00:58]} 31. Ne2 {[%emt 0:00:14]} Bf3 {[%emt 0:00:14]} 32. Nhg3 {[%emt 0:00:31]} Nf4 {[%emt 0:00:31]} 33. Re1 {[%emt 0:02:52]} Bxe2 {[%emt 0:00:50]} 34. Nxe2 {[%emt 0:00:31]} Nxe2+ {[%emt 0:00:02]} 35. Kd1 {[%emt 0:00:09]} Nd4 {[%emt 0:01:28]} 36. Rxe3 {[%emt 0:02:53]} Rg1+ {[%emt 0:00:35]} 37. Kd2 {[%emt 0:00:11]} Rh1 {[%emt 0:00:17]} 38. Rg3 {[%emt 0:01:12]} Rf1 {[%emt 0:01:46]} 39. Rg8+ {[%emt 0:01:21]} Kb7 {[%emt 0:00:33]} 40. c3 {[%emt 0:00:00]} bxc3+ {[%emt 0:00:00]} 41. bxc3 {[%emt 0:01:40]} Nc6 {[%emt 0:03:54]} 42. h5 {[%emt 0:01:12]} Rxf6 {[%emt 0:02:04]} 43. Rh8 {[%emt 0:00:21]} Rf4 {[%emt 0:01:25]} 44. h6 {[%emt 0:00:26]} f5 {[%emt 0:00:10]} 45. h7 {[%emt 0:01:48]} Rh4 {[%emt 0:00:38]} 46. Ke3 {[%emt 0:01:03]} e4 {[%emt 0:00:32]} 47. Kf2 {[%emt 0:00:17]} f4 {[%emt 0:00:12]} 48. Rf8 {[%emt 0:00:38]} Rh2+ {[%emt 0:02:04]} 49. Ke1 {[%emt 0:00:06]} Rxh7 {[%emt 0:00:04]} 50. Rxf4 {[%emt 0:00:09]} Re7 {[%emt 0:00:04]} 51. Ke2 {[%emt 0:00:22]} e3 {[%emt 0:00:52]} 52. Rf3 {[%emt 0:00:42]} Kb6 {[%emt 0:00:04]} 53. Rxe3 {[%emt 0:00:12]} Rxe3+ {[%emt 0:00:06]} 54. Kxe3 {[%emt 0:00:09]} Kc5 {[%emt 0:00:01]} 55. Kd3 {[%emt 0:00:17]} Ne7 {[%emt 0:00:15]} 56. Kc2 {[%emt 0:00:25]} Kc4 {[%emt 0:00:04]} 57. Kb2 {[%emt 0:00:40]} Nd5 {[%emt 0:00:09]} 58. Ka3 {[%emt 0:00:30]} Nxc3 {[%emt 0:00:05]} 59. Kb2 {[%emt 0:00:07]} Nb5 {[%emt 0:00:04]} 60. Kc2 {[%emt 0:00:20]} Kb4 {[%emt 0:00:11]} 61. Kb2 {[%emt 0:00:09]} a5 {[%emt 0:00:01]} 62. Kb1 {[%emt 0:00:26]} Kc3 {[%emt 0:00:20]} 63. Ka1 {[%emt 0:00:26]} Kc2 {[%emt 0:00:17]} 0-1

[Event "WYCC 2018 O14"]
[Site "Halkidiki"]
[Date "2018.10.26"]
[Round "7"]
[White "Huang, Renjie"]
[Black "Juhasz, Agoston"]
[Result "1-0"]
[ECO "B18"]
[WhiteElo "2322"]
[BlackElo "2174"]
[Annotator "NA"]
[PlyCount "87"]
[EventDate "2018.10.20"]
[EventType "swiss"]
[EventCountry "GRE"]
[SourceTitle "playchess.com"]
[Source "ChessBase"]
[SourceQuality "1"]
[TimeControl "40/5400+30:1800+30"]

1. e4 {[%emt 0:00:00]} c6 {[%emt 0:00:00]} 2. d4 {[%emt 0:00:20]} d5 {[%emt 0:00:00]} 3. Nc3 {[%emt 0:00:05]} dxe4 {[%emt 0:00:09]} 4. Nxe4 {[%emt 0:00:04]} Bf5 {[%emt 0:00:10]} 5. Ng3 {[%emt 0:00:05]} Bg6 {[%emt 0:00:08]} 6. Nh3 {[%emt 0:00:09]} e6 {[%emt 0:01:33]} 7. Nf4 {[%emt 0:00:10]} Bd6 {[%emt 0:00:47]} 8. c3 {[%emt 0:00:26]} Qc7 {[%emt 0:12:45]} 9. Qf3 {[%emt 0:00:03]} Nf6 {[%emt 0:00:24]} 10. h4 {[%emt 0:00:17]} Nbd7 {[%emt 0:00:22]} 11. h5 {[%emt 0:03:10]} Bc2 {[%emt 0:00:23]} 12. h6 {[%emt 0:00:50]} g6 {[%emt 0:01:34]} 13. Bd3 $11 {[%emt 0:02:09] LiveBook: 28 Games} Bxd3 {[%emt 0:01:02]} 14. Nxd3 {[%emt 0:00:02]} O-O-O {[%emt 0:17:46]} 15. Bg5 {[%emt 0:01:41]} Be7 {[%emt 0:02:57]} 16. O-O-O {[%emt 0:10:47]} Qa5 {[%emt 0:15:07]} 17. Bxf6 {[%emt 0:09:00]} Nxf6 {[%emt 0:00:33]} 18. Ne5 {[%emt 0:00:55]} Rhf8 {[%emt 0:01:02]} 19. Kb1 {[%emt 0:00:20]} Qd5 {[%emt 0:03:07]} 20. Qe2 {[%emt 0:00:18]} Nd7 {[%emt 0:02:45]} 21. f4 {[%emt 0:03:04]} g5 {[%emt 0:10:56]} 22. f5 {[%emt 0:06:05]} exf5 {[%emt 0:00:53]} 23. Nxf5 {[%emt 0:01:29]} Bf6 {[%emt 0:01:53]} 24. Rhe1 Qe6 {[%emt 0:03:34]} 25. Qg4 {[%emt 0:11:24]} Nxe5 {[%emt 0:04:55]} 26. dxe5 {[%emt 0:00:18]} Rxd1+ {[%emt 0:00:26]} 27. Rxd1 {[%emt 0:00:11]} Bxe5 {[%emt 0:00:55]} 28. Rf1 {[%emt 0:06:20]} Bf6 {[%emt 0:02:15]} 29. Nd6+ {[%emt 0:04:55]} Kd7 {[%emt 0:04:52]} 30. Ne4 {[%emt 0:06:40]} Be7 {[%emt 0:02:10]} 31. Rf5 {[%emt 0:00:06]} Kc8 {[%emt 0:03:01]} 32. Nxg5 {[%emt 0:01:37]} Bxg5 {[%emt 0:00:17]} 33. Rxg5 {[%emt 0:02:36]} f5 {[%emt 0:01:50]} 34. Qh4 {[%emt 0:05:00]} Qe2 {[%emt 0:02:53]} 35. a3 {[%emt 0:00:53]} Rd8 {[%emt 0:00:32]} 36. Qf4 {[%emt 0:00:50]} Qe1+ {[%emt 0:02:44]} 37. Ka2 {[%emt 0:00:10]} Qe6+ {[%emt 0:00:06]} 38. c4 {[%emt 0:00:14]} Qxh6 {[%emt 0:01:11]} 39. Qxf5+ {[%emt 0:00:05]} Kb8 {[%emt 0:00:29]} 40. Rh5 {[%emt 0:00:00]} Qc1 {[%emt 0:00:00]} 41. Qf7 {[%emt 0:02:33]} h6 {[%emt 0:13:30]} 42. Re5 {[%emt 0:00:20]} Ka8 {[%emt 0:02:04]} 43. Re8 {[%emt 0:02:37]} Qd2 {[%emt 0:01:46]} 44. Qg8 {[%emt 0:00:30]} 1-0

[Event "WYCC 2018 O14"]
[Site "Halkidiki"]
[Date "2018.10.26"]
[Round "7"]
[White "Tanriverdi, Enes"]
[Black "Zhukenov, Aituar"]
[Result "1-0"]
[ECO "E15"]
[WhiteElo "2317"]
[BlackElo "2025"]
[Annotator "NA"]
[PlyCount "37"]
[EventDate "2018.10.20"]
[EventType "swiss"]
[EventCountry "GRE"]
[SourceTitle "playchess.com"]
[Source "ChessBase"]
[SourceQuality "1"]
[TimeControl "40/5400+30:1800+30"]

1. d4 {[%emt 0:00:00]} Nf6 {[%emt 0:00:00]} 2. c4 {[%emt 0:00:00]} e6 {[%emt 0:00:00]} 3. Nf3 {[%emt 0:00:00]} b6 {[%emt 0:00:01]} 4. g3 {[%emt 0:00:00]} Ba6 {[%emt 0:00:09]} 5. b3 {[%emt 0:00:00]} Bb4+ {[%emt 0:03:22]} 6. Bd2 {[%emt 0:00:01]} Be7 {[%emt 0:00:12]} 7. Nc3 {[%emt 0:00:04]} c6 {[%emt 0:01:58]} 8. e4 {[%emt 0:00:28]} d5 {[%emt 0:00:12]} 9. Bd3 {[%emt 0:00:16]} dxe4 {[%emt 0:00:59]} 10. Nxe4 {[%emt 0:00:06]} Nbd7 {[%emt 0:00:50]} 11. Qe2 $11 {[%emt 0:02:56] LiveBook: 3 Games} c5 {[%emt 0:07:32]} 12. d5 {[%emt 0:06:43]} exd5 {[%emt 0:08:07]} 13. Nd6+ {[%emt 0:00:20]} Kf8 {[%emt 0:00:03]} 14. Nxf7 {[%emt 0:01:47]} Kxf7 {[%emt 0:04:57]} 15. Ng5+ {[%emt 0:00:16]} Ke8 {[%emt 0:00:05]} 16. Ne6 {[%emt 0:07:41]} Qc8 {[%emt 0:07:06]} 17. Nxg7+ {[%emt 0:00:23]} Kf7 {[%emt 0:02:59]} 18. Qe6+ {[%emt 0:00:27]} Kf8 {[%emt 0:03:20]} 19. Bh6 1-0

[Event "WYCC 2018 O14"]
[Site "Halkidiki"]
[Date "2018.10.26"]
[Round "7"]
[White "Dardha, Daniel"]
[Black "Bassini, Emile"]
[Result "1-0"]
[ECO "A45"]
[WhiteElo "2316"]
[BlackElo "2002"]
[Annotator "NA"]
[PlyCount "87"]
[EventDate "2018.10.20"]
[EventType "swiss"]
[EventCountry "GRE"]
[SourceTitle "playchess.com"]
[Source "ChessBase"]
[SourceQuality "1"]
[TimeControl "40/5400+30:1800+30"]

1. d4 {[%emt 0:00:00]} Nf6 {[%emt 0:00:00]} 2. Bf4 {[%emt 0:00:00]} e6 {[%emt 0:04:00]} 3. e3 {[%emt 0:00:00]} d6 {[%emt 0:04:28]} 4. Nf3 {[%emt 0:01:15]} Be7 {[%emt 0:00:33]} 5. h3 {[%emt 0:00:09]} Nbd7 {[%emt 0:00:19]} 6. Be2 {[%emt 0:01:02]} O-O {[%emt 0:00:56]} 7. O-O {[%emt 0:00:03]} b6 {[%emt 0:03:09]} 8. Nbd2 {[%emt 0:06:45]} Bb7 $11 {[%emt 0:00:51]} 9. a4 {[%emt 0:12:11]} a5 {[%emt 0:04:14]} 10. c3 {[%emt 0:02:09]} Re8 {[%emt 0:01:28]} 11. Qc2 {[%emt 0:01:08]} Bf8 {[%emt 0:13:40]} 12. Bh2 {[%emt 0:01:56]} Rc8 {[%emt 0:10:31]} 13. b4 {[%emt 0:22:02]} c5 {[%emt 0:17:48]} 14. bxc5 {[%emt 0:18:07]} dxc5 {[%emt 0:00:27]} 15. Rfd1 {[%emt 0:14:17]} cxd4 {[%emt 0:01:50]} 16. Nxd4 {[%emt 0:02:22]} Nd5 {[%emt 0:06:21]} 17. Nb5 {[%emt 0:02:16]} Qg5 {[%emt 0:14:29]} 18. Nf3 {[%emt 0:02:43]} Qf6 {[%emt 0:02:24]} 19. e4 {[%emt 0:03:57]} Nxc3 {[%emt 0:01:30]} 20. Nxc3 {[%emt 0:00:19]} Rxc3 {[%emt 0:01:19]} 21. Qd2 {[%emt 0:00:04]} Rxf3 {[%emt 0:01:44]} 22. Bxf3 {[%emt 0:00:42]} Ne5 {[%emt 0:04:02]} 23. Be2 {[%emt 0:05:12]} Bc5 {[%emt 0:00:42]} 24. Qf4 {[%emt 0:00:25]} Nc6 {[%emt 0:01:23]} 25. Qxf6 {[%emt 0:02:05]} gxf6 {[%emt 0:00:06]} 26. Bb5 {[%emt 0:00:02]} Rc8 {[%emt 0:00:17]} 27. Bd6 {[%emt 0:00:55]} Nd4 {[%emt 0:03:58]} 28. Bxc5 {[%emt 0:00:55]} Nxb5 {[%emt 0:00:01]} 29. Bxb6 {[%emt 0:00:24]} Nc3 {[%emt 0:00:04]} 30. Rd8+ {[%emt 0:00:30]} Rxd8 {[%emt 0:00:07]} 31. Bxd8 {[%emt 0:00:04]} Bc6 {[%emt 0:00:04]} 32. f3 {[%emt 0:00:47]} Kg7 {[%emt 0:00:19]} 33. Bxa5 {[%emt 0:00:33]} Nxa4 {[%emt 0:00:07]} 34. Rc1 {[%emt 0:00:22]} Bb5 {[%emt 0:00:34]} 35. Rc8 {[%emt 0:00:46]} Ba6 {[%emt 0:01:11]} 36. Ra8 {[%emt 0:00:18]} Bb5 {[%emt 0:01:04]} 37. Bb4 {[%emt 0:00:20]} Bc6 {[%emt 0:00:32]} 38. Rc8 {[%emt 0:00:18]} Bd7 {[%emt 0:01:01]} 39. Rd8 {[%emt 0:00:09]} Bc6 {[%emt 0:00:07]} 40. Rb8 {[%emt 0:00:00]} Bd7 {[%emt 0:00:00]} 41. Kf2 {[%emt 0:02:42]} f5 {[%emt 0:07:51]} 42. exf5 {[%emt 0:00:52]} exf5 {[%emt 0:00:27]} 43. Ke3 {[%emt 0:00:40]} Be6 {[%emt 0:00:33]} 44. Kf4 {[%emt 0:00:23]} 1-0

[Event "WYCC 2018 O14"]
[Site "Halkidiki"]
[Date "2018.10.26"]
[Round "7"]
[White "Gharibyan, Mamikon"]
[Black "Abelakiotis, Stavros"]
[Result "1-0"]
[ECO "D85"]
[WhiteElo "2314"]
[BlackElo "1994"]
[Annotator "NA"]
[PlyCount "97"]
[EventDate "2018.10.20"]
[EventType "swiss"]
[EventCountry "GRE"]
[SourceTitle "playchess.com"]
[Source "ChessBase"]
[SourceQuality "1"]
[TimeControl "40/5400+30:1800+30"]

1. d4 {[%emt 0:00:00]} Nf6 {[%emt 0:00:00]} 2. c4 {[%emt 0:00:28]} g6 {[%emt 0:00:40]} 3. Nc3 {[%emt 0:00:11]} d5 {[%emt 0:00:09]} 4. cxd5 {[%emt 0:00:30]} Nxd5 {[%emt 0:00:25]} 5. e4 {[%emt 0:00:56]} Nxc3 {[%emt 0:00:12]} 6. bxc3 {[%emt 0:00:05]} Bg7 {[%emt 0:00:09]} 7. Be3 {[%emt 0:00:38]} c5 {[%emt 0:01:20]} 8. Qd2 {[%emt 0:01:12]} Qa5 {[%emt 0:00:35]} 9. Nf3 {[%emt 0:02:04]} O-O {[%emt 0:00:32]} 10. Rc1 {[%emt 0:01:16]} cxd4 {[%emt 0:01:27]} 11. cxd4 {[%emt 0:00:54]} Qxd2+ $11 {[%emt 0:00:30] LiveBook: 186 Games} 12. Nxd2 {[%emt 0:04:59]} e6 {[%emt 0:00:56]} 13. Bc4 {[%emt 0:07:51]} Bd7 {[%emt 0:26:47]} 14. Nb3 {[%emt 0:06:53]} Rc8 {[%emt 0:12:34]} 15. Nc5 {[%emt 0:06:15]} b5 {[%emt 0:05:35]} 16. Be2 {[%emt 0:17:09]} Be8 {[%emt 0:15:38]} 17. O-O {[%emt 0:09:11]} Nc6 {[%emt 0:08:57]} 18. Rfd1 {[%emt 0:02:23]} Rd8 {[%emt 0:07:00]} 19. e5 {[%emt 0:02:21]} Nb4 {[%emt 0:05:50]} 20. a3 {[%emt 0:14:56]} Nd5 {[%emt 0:01:52]} 21. Nb7 {[%emt 0:00:25]} Rdb8 {[%emt 0:05:05]} 22. Nd6 {[%emt 0:00:20]} Bf8 {[%emt 0:01:11]} 23. Nxe8 {[%emt 0:03:13]} Rxe8 {[%emt 0:00:08]} 24. Bxb5 {[%emt 0:00:49]} Rec8 {[%emt 0:01:05]} 25. Bc6 {[%emt 0:03:41]} Bxa3 {[%emt 0:02:47]} 26. Bxa8 {[%emt 0:00:26]} Bxc1 {[%emt 0:00:11]} 27. Bxd5 {[%emt 0:00:12]} Bxe3 {[%emt 0:00:07]} 28. fxe3 {[%emt 0:00:09]} exd5 {[%emt 0:00:05]} 29. Ra1 {[%emt 0:00:06]} Rc7 {[%emt 0:01:44]} 30. Ra5 {[%emt 0:00:27]} Rd7 {[%emt 0:00:27]} 31. Kf2 {[%emt 0:00:08]} Kf8 {[%emt 0:00:40]} 32. Ra6 {[%emt 0:02:54]} Ke7 {[%emt 0:00:39]} 33. e4 dxe4 {[%emt 0:00:35]} 34. Ke3 {[%emt 0:00:40]} Rb7 {[%emt 0:00:34]} 35. Kxe4 {[%emt 0:00:25]} Rc7 {[%emt 0:00:24]} 36. g4 {[%emt 0:00:53]} h6 {[%emt 0:00:26]} 37. h4 {[%emt 0:00:13]} Rb7 {[%emt 0:00:41]} 38. h5 {[%emt 0:00:11]} gxh5 {[%emt 0:00:30]} 39. gxh5 {[%emt 0:00:04]} Kf8 {[%emt 0:00:32]} 40. Rxh6 {[%emt 0:00:00]} Kg7 {[%emt 0:00:00]} 41. Ra6 {[%emt 0:01:04]} Rb1 {[%emt 0:04:08]} 42. h6+ {[%emt 0:01:08]} Kg8 {[%emt 0:00:09]} 43. Rxa7 {[%emt 0:00:17]} Rh1 {[%emt 0:00:17]} 44. d5 {[%emt 0:08:23]} Rh4+ {[%emt 0:03:09]} 45. Ke3 {[%emt 0:00:39]} Kf8 {[%emt 0:06:13]} 46. d6 {[%emt 0:01:12]} Ke8 {[%emt 0:00:16]} 47. e6 {[%emt 0:01:54]} fxe6 {[%emt 0:04:54]} 48. h7 {[%emt 0:00:06]} Kf8 {[%emt 0:00:22]} 49. h8=Q+ {[%emt 0:00:28]} 1-0

[Event "WYCC 2018 O14"]
[Site "Halkidiki"]
[Date "2018.10.26"]
[Round "7"]
[White "Suleymanli, Aydin"]
[Black "Lopez Varela, Pablo"]
[Result "1-0"]
[ECO "A41"]
[WhiteElo "2313"]
[BlackElo "2172"]
[Annotator "NA"]
[PlyCount "95"]
[EventDate "2018.10.20"]
[EventType "swiss"]
[EventCountry "GRE"]
[SourceTitle "playchess.com"]
[Source "ChessBase"]
[SourceQuality "1"]
[TimeControl "40/5400+30:1800+30"]

1. d4 {[%emt 0:00:00]} d6 {[%emt 0:00:00]} 2. c4 {[%emt 0:00:00]} e5 {[%emt 0:00:00]} 3. e3 {[%emt 0:00:00]} Nd7 {[%emt 0:01:01]} 4. Nc3 {[%emt 0:00:03]} g6 {[%emt 0:00:13]} 5. g3 {[%emt 0:00:30]} Bg7 {[%emt 0:00:10]} 6. Bg2 {[%emt 0:00:27]} f5 {[%emt 0:01:19]} 7. Nge2 {[%emt 0:00:41]} Ngf6 {[%emt 0:00:21]} 8. b3 {[%emt 0:08:05]} O-O {[%emt 0:03:52]} 9. Bb2 {[%emt 0:18:50]} c6 {[%emt 0:05:44]} 10. Qc2 {[%emt 0:06:41]} e4 {[%emt 0:06:57]} 11. O-O-O {[%emt 0:01:31]} Nb8 {[%emt 0:09:09]} 12. d5 {[%emt 0:02:51]} c5 {[%emt 0:01:03]} 13. Nf4 {[%emt 0:06:49]} Na6 {[%emt 0:00:24]} 14. a3 {[%emt 0:20:57]} Nc7 {[%emt 0:00:10]} 15. Rd2 {[%emt 0:01:01]} Ng4 {[%emt 0:10:54]} 16. Kb1 {[%emt 0:14:33]} Re8 {[%emt 0:12:11]} 17. h3 {[%emt 0:03:49]} Ne5 {[%emt 0:00:31]} 18. g4 {[%emt 0:05:45]} Nf3 {[%emt 0:05:29]} 19. Rdd1 {[%emt 0:03:45]} Nh4 {[%emt 0:10:09]} 20. Bf1 {[%emt 0:01:09]} Rb8 {[%emt 0:06:10]} 21. Be2 {[%emt 0:01:09]} Qe7 {[%emt 0:02:08]} 22. Na4 {[%emt 0:01:47]} Bxb2 {[%emt 0:00:14]} 23. Qxb2 {[%emt 0:00:03]} Nf3 {[%emt 0:01:02]} 24. gxf5 {[%emt 0:00:26]} Bxf5 {[%emt 0:00:35]} 25. Nxc5 {[%emt 0:00:05]} Ne5 {[%emt 0:05:21]} 26. Nce6 {[%emt 0:00:40]} Bxe6 {[%emt 0:02:21]} 27. dxe6 {[%emt 0:00:36]} Nxe6 {[%emt 0:00:43]} 28. Nd5 {[%emt 0:00:10]} Qg7 {[%emt 0:00:51]} 29. Nc3 {[%emt 0:00:59]} Nc5 {[%emt 0:04:39]} 30. Rd4 {[%emt 0:01:05]} Rf8 {[%emt 0:06:22]} 31. Rf1 {[%emt 0:00:24]} Nf3 {[%emt 0:03:31]} 32. Bxf3 {[%emt 0:00:25]} Rxf3 {[%emt 0:00:15]} 33. b4 {[%emt 0:00:15]} Nd3 {[%emt 0:01:27]} 34. Qd2 {[%emt 0:00:39]} Rbf8 {[%emt 0:00:07]} 35. Nxe4 {[%emt 0:00:15]} Ne5 {[%emt 0:00:44]} 36. Ng5 {[%emt 0:00:41]} R3f6 {[%emt 0:00:47]} 37. f4 {[%emt 0:00:40]} Qc7 {[%emt 0:00:59]} 38. Rc1 {[%emt 0:00:34]} Nc6 {[%emt 0:00:05]} 39. Rd3 {[%emt 0:00:11]} Qe7 {[%emt 0:00:45]} 40. c5 {[%emt 0:00:00]} Rd8 {[%emt 0:00:00]} 41. b5 {[%emt 0:08:40]} Nb8 {[%emt 0:00:59]} 42. cxd6 {[%emt 0:03:45]} Qd7 {[%emt 0:01:40]} 43. Qa2+ {[%emt 0:00:24]} Kh8 {[%emt 0:00:18]} 44. Qb2 {[%emt 0:00:51]} Qf5 {[%emt 0:00:49]} 45. e4 {[%emt 0:00:09]} Qxf4 {[%emt 0:00:20]} 46. Nf7+ {[%emt 0:00:07]} Kg7 {[%emt 0:00:18]} 47. Nxd8 {[%emt 0:00:09]} Qxe4 {[%emt 0:00:08]} 48. Qd4 {[%emt 0:00:50]} 1-0

[Event "WYCC 2018 O14"]
[Site "Halkidiki"]
[Date "2018.10.26"]
[Round "7"]
[White "Tsay, Vincent"]
[Black "Fecker, Noah"]
[Result "1-0"]
[ECO "D92"]
[WhiteElo "2310"]
[BlackElo "2184"]
[Annotator "NA"]
[PlyCount "137"]
[EventDate "2018.10.20"]
[EventType "swiss"]
[EventCountry "GRE"]
[SourceTitle "playchess.com"]
[Source "ChessBase"]
[SourceQuality "1"]
[TimeControl "40/5400+30:1800+30"]

1. d4 {[%emt 0:00:00]} Nf6 {[%emt 0:00:00]} 2. c4 {[%emt 0:00:00]} g6 {[%emt 0:00:00]} 3. Nc3 {[%emt 0:00:00]} d5 {[%emt 0:00:07]} 4. Nf3 {[%emt 0:02:25]} Bg7 {[%emt 0:00:56]} 5. Bf4 {[%emt 0:00:37]} O-O {[%emt 0:01:05]} 6. Rc1 {[%emt 0:00:35]} dxc4 {[%emt 0:00:30]} 7. e3 {[%emt 0:03:05]} c5 {[%emt 0:01:07]} 8. Bxc4 {[%emt 0:02:02]} Qa5 {[%emt 0:08:01]} 9. O-O {[%emt 0:17:44]} cxd4 {[%emt 0:15:37]} 10. Nxd4 {[%emt 0:12:07]} Rd8 {[%emt 0:17:30]} 11. Qf3 {[%emt 0:17:34]} Na6 {[%emt 0:07:39]} 12. Nb3 {[%emt 0:10:21]} Qh5 {[%emt 0:02:09]} 13. Rfd1 {[%emt 0:03:56]} Re8 {[%emt 0:08:15]} 14. Qxh5 {[%emt 0:06:23]} Nxh5 {[%emt 0:02:44]} 15. Bb5 {[%emt 0:02:42]} Rf8 {[%emt 0:08:30]} 16. Nd5 {[%emt 0:02:17]} Nxf4 {[%emt 0:04:18]} 17. Nxe7+ {[%emt 0:00:57]} Kh8 {[%emt 0:00:02]} 18. Rxc8 {[%emt 0:04:47]} Raxc8 {[%emt 0:02:41]} 19. Nxc8 {[%emt 0:00:09]} Rxc8 {[%emt 0:02:06]} 20. Bxa6 {[%emt 0:04:10]} bxa6 {[%emt 0:02:25]} 21. exf4 {[%emt 0:00:04]} a5 {[%emt 0:02:09]} 22. Nxa5 {[%emt 0:00:52]} Bxb2 {[%emt 0:00:11]} 23. g3 {[%emt 0:01:32]} Rc2 {[%emt 0:02:13]} 24. Nb3 {[%emt 0:00:49]} Bf6 {[%emt 0:04:13]} 25. Rd6 {[%emt 0:00:56]} Kg7 {[%emt 0:00:43]} 26. Ra6 {[%emt 0:00:14]} Rc7 {[%emt 0:01:14]} 27. Kg2 {[%emt 0:00:58]} Bd8 {[%emt 0:00:42]} 28. Nd4 {[%emt 0:01:11]} Rd7 {[%emt 0:00:31]} 29. Nf3 {[%emt 0:02:43]} Bb6 {[%emt 0:00:44]} 30. Ra3 {[%emt 0:00:30]} Rc7 {[%emt 0:00:30]} 31. Rd3 {[%emt 0:00:18]} Rc1 {[%emt 0:03:33]} 32. Rd7 {[%emt 0:00:44]} Rc2 {[%emt 0:00:48]} 33. Rd2 {[%emt 0:00:13]} Rc7 {[%emt 0:01:18]} 34. Ne5 {[%emt 0:00:10]} Kf6 {[%emt 0:01:08]} 35. Kf3 {[%emt 0:02:45]} Ke6 {[%emt 0:00:31]} 36. Kg4 {[%emt 0:01:01]} f6 {[%emt 0:00:48]} 37. Nf3 {[%emt 0:00:19]} Rc4 {[%emt 0:00:14]} 38. Kh3 {[%emt 0:00:39]} Rc3 {[%emt 0:00:38]} 39. Kg2 {[%emt 0:00:12]} Rc4 {[%emt 0:00:18]} 40. h3 {[%emt 0:00:00]} Ke7 {[%emt 0:00:00]} 41. Nh2 {[%emt 0:04:09]} Ke6 {[%emt 0:03:24]} 42. h4 {[%emt 0:08:37]} Rc5 {[%emt 0:05:40]} 43. Ng4 {[%emt 0:01:31]} Ke7 {[%emt 0:05:41]} 44. Ne3 {[%emt 0:01:20]} Ke6 {[%emt 0:00:35]} 45. g4 {[%emt 0:01:47]} h5 {[%emt 0:04:06]} 46. f3 {[%emt 0:06:17]} f5 {[%emt 0:05:07]} 47. gxh5 {[%emt 0:02:53]} gxh5 {[%emt 0:00:07]} 48. Re2 {[%emt 0:03:54]} Kf6 {[%emt 0:00:48]} 49. Nf1 {[%emt 0:00:58]} Rc6 {[%emt 0:03:23]} 50. Ng3 {[%emt 0:00:17]} Kg6 {[%emt 0:00:04]} 51. Re5 {[%emt 0:02:10]} Bd8 {[%emt 0:01:52]} 52. Nxf5 {[%emt 0:00:59]} Rc2+ {[%emt 0:01:18]} 53. Kg3 {[%emt 0:00:14]} Rxa2 {[%emt 0:00:04]} 54. Nd6 {[%emt 0:00:26]} a5 {[%emt 0:01:30]} 55. Re8 {[%emt 0:01:07]} Bf6 {[%emt 0:01:53]} 56. Re6 {[%emt 0:01:05]} Kg7 {[%emt 0:01:25]} 57. Ne8+ {[%emt 0:01:07]} Kf7 {[%emt 0:00:01]} 58. Rxf6+ {[%emt 0:00:15]} Kxe8 {[%emt 0:00:01]} 59. Rh6 {[%emt 0:00:05]} a4 {[%emt 0:00:05]} 60. Rxh5 {[%emt 0:00:05]} a3 {[%emt 0:00:01]} 61. Ra5 {[%emt 0:00:08]} Ra1 {[%emt 0:00:02]} 62. Ra7 {[%emt 0:01:38]} a2 {[%emt 0:00:19]} 63. Kg2 {[%emt 0:00:04]} Kf8 {[%emt 0:00:10]} 64. h5 {[%emt 0:00:26]} Kg8 {[%emt 0:00:03]} 65. f5 {[%emt 0:00:50]} Kh8 {[%emt 0:03:48]} 66. f6 {[%emt 0:00:15]} Rb1 {[%emt 0:01:51]} 67. Rxa2 {[%emt 0:00:37]} Rb6 {[%emt 0:00:19]} 68. Ra8+ {[%emt 0:00:07]} Kh7 {[%emt 0:00:01]} 69. f7 {[%emt 0:00:09]} 1-0